Cogmind - Beta 16 @@@ ROGUE MODE // 2026.01.26 @ 13:33:18 Player: Zargoosa Result: Destroyed by as-54335 with Assembled Heavy Rifle Performance ------------- Evolutions (0) 0 Regions Visited (2) 400 Robots Destroyed (6) 30 Value Destroyed (77) 77 Prototype IDs (0) 0 Alien Tech Used (0) 0 Bonus (0) 0 TOTAL SCORE: 507 Bonus ------- None Cogmind --------- Core Integrity 0/250 Matter 261/300 Energy 249/250 System Corruption 0% Temperature Cool (0) Movement Core (400) Ox7 Location -10/Mines Parts ------- > --- POWER (1) -------- Ion Engine > --- PROPULSION (2) --- (None) > --- UTILITY (2) ------ Small Storage Unit Medium Storage Unit > --- WEAPON (2) ------- Assault Rifle > --- INVENTORY (10) --- Light Ion Engine Datajack Mining Laser Peak State ------------ > --- POWER ------------ Ion Engine > --- PROPULSION ------- Aluminum Leg Aluminum Leg > --- UTILITY ---------- Small Storage Unit Large Storage Unit > --- WEAPON ----------- Small Laser Small Laser > --- INVENTORY -------- Ion Engine Light Ion Engine Assault Rifle Mining Laser [Rating: 7] Favorites ----------- Power Ion Engine Engine Ion Engine Propulsion Aluminum Leg Treads Light Treads Leg Aluminum Leg Utility Medium Storage Unit Storage Medium Storage Unit Weapon Small Laser Energy Gun Small Laser Ballistic Gun Assault Rifle Build | -11 -10 -10 ------- Run | Yrd Mat Min Slots Evolved . | . . . Power . | . . . Propulsion . | . . . Utility . | . . . Weapon . | . . . Parts Attached 13 | 8 3 2 Power 2 | 1 . 1 Engine 2 | 1 . 1 Core . | . . . Reactor . | . . . Propulsion 4 | 4 . . Treads 2 | 2 . . Leg 2 | 2 . . Wheel . | . . . Hover . | . . . Flight . | . . . Utility 4 | 1 3 . Device . | . . . Storage 4 | 1 3 . Processor . | . . . Hackware . | . . . Protection . | . . . Artifact . | . . . Weapon 3 | 2 . 1 Energy Gun 2 | 2 . . Energy Cannon . | . . . Ballistic Gun 1 | . . 1 Ballistic Cannon . | . . . Launcher . | . . . Special Weapon . | . . . Impact Weapon . | . . . Slashing Weapon . | . . . Piercing Weapon . | . . . Special Melee Weapon . | . . . Unidentified Prototypes . | . . . Parts Lost 5 | . . 5 Power 1 | . . 1 Propulsion 2 | . . 2 Utility . | . . . Weapon 2 | . . 2 Highest Loss Streak 5 | . . 5 To Critical Strikes . | . . . Average Backups 4 | 1 4 5 Power 1 | . 2 1 Propulsion . | . . . Utility . | . . . Weapon 1 | . 2 1 Tool/Special . | . . . Unused Backups 3 | . . 3 Power 1 | . . 1 Propulsion . | . . . Utility . | . . . Weapon 1 | . . 1 Tool/Special 1 | . . 1 Average Slot Usage (%) 82 | . 86 81 Engine 14 | . 14 14 Leg 25 | . 28 25 Storage 14 | . 14 14 Energy Gun 26 | . 28 25 Peak Build Rating 7 | 6 7 6 Average Rating 5 | 4 6 5 On Entrance 4 | . 6 6 Avg Prop Armor Cover (%) . | . . . Naked Turns . | . . . Heaviest Build 47 | 12 47 22 Greatest Support 20 | 20 20 20 Greatest Overweight (x) 7 | 1 2 7 Average Overweight (x) . | . . . Largest Inventory Capacity 15 | 8 15 10 Average Capacity 9 | 7 9 10 Most Carried 8 | 4 5 8 Average Carried 5 | 1 4 6 Final Capacity 10 | 8 10 10 Final Carried 5 | 4 5 3 Class Distribution -------------------- 100% | Mutant Dominant Class ---------------- Mutant | -10/Materials Mutant | -10/Mines Resources | -11 -10 -10 ----------- Run | Yrd Mat Min Matter Collected 304 | 278 26 . Remotely . | . . . Salvage Created 204 | 102 43 59 Parts 12 | 6 1 5 Haulers Intercepted . | . . . Recyclers Shooed 1 | 1 . . Parts Field Recycled . | . . . Retrieved Matter . | . . . Parts Self-Destructed . | . . . Prevented . | . . . Parts Restored . | . . . Kills | -11 -10 -10 ------- Run | Yrd Mat Min Combat Hostiles Destroyed 5 | . 1 4 Guns 5 | . 1 4 Classes Destroyed 5 | 2 1 2 Tunneler 1 | 1 . . Recycler 1 | 1 . . Swarmer 3 | . . 3 Grunt 1 | . 1 . Assembled 1 | . . 1 Best Kill Streak 3 | 2 1 3 Combat Bots Only 3 | . 1 3 Max Kills in Single Turn 1 | 1 1 1 Gunslinging . | . . . Exploded . | . . . Melee . | . . . Uniques/NPCs Destroyed . | . . . Combat | -11 -10 -10 -------- Run | Yrd Mat Min Hostile Shots Fired 113 | . 29 84 Missed 55 | . 19 36 Hits 58 | . 10 48 Projectile 58 | . 10 48 AOE 1 | . . 1 Critical Strikes 1 | . . 1 Damage Taken 747 | . 116 631 Core 267 | . 21 246 Absorbed by Shields . | . . . Core Remaining (%) 100 | 100 . . Volleys Fired 16 | 2 5 9 Largest 2 | 2 2 2 Hottest 80 | 80 80 80 Shots Fired 29 | 4 10 15 Gun 29 | 4 10 15 Cannon . | . . . Launcher . | . . . Special . | . . . Kinetic 3 | . . 3 Thermal 26 | 4 10 12 Explosive . | . . . Electromagnetic . | . . . Robot Hit Streak 8 | 2 8 4 Robot Miss Streak 4 | . 2 4 Penetration Max . | . . . Secondary Targets . | . . . Shots Hit Robots 16 | 2 8 6 Core Hits 10 | 3 2 5 Critical Kills . | . . . Critical Parts Destroyed . | . . . Critical Strikes . | . . . Melee Attacks . | . . . Impact . | . . . Slashing . | . . . Piercing . | . . . Sneak Attacks . | . . . Combat Hostiles . | . . . Follow-up Attacks . | . . . Damage Inflicted 188 | 32 86 70 Guns 177 | 21 86 70 Cannons . | . . . Explosions . | . . . Melee . | . . . Ramming 11 | 11 . . Kinetic 25 | . . 25 Thermal 152 | 21 86 45 Explosive . | . . . Electromagnetic . | . . . Impact . | . . . Slashing . | . . . Piercing . | . . . Highest Corruption . | . . . Average Corruption . | . . . Corruption Purged . | . . . Corruption Blocked . | . . . Overload Shots . | . . . Overflow Damage . | . . . Projectiles . | . . . Explosions . | . . . Melee . | . . . Knockbacks 1 | 1 . . Impact 1 | 1 . . Kinetic . | . . . Secondary . | . . . Self-Inflicted Damage . | . . . Shots . | . . . Rammed . | . . . Targets Rammed 2 | 1 1 . Kicked 2 | 1 1 . Crushed . | . . . Highest Temperature 90 | 18 90 54 Average Temperature 29 | 12 43 21 Received Heat Transfer 66 | . 66 . Siege Activations . | . . . Martial Activations . | . . . Shielding Activations . | . . . Robots Disrupted . | . . . Combat Hostiles . | . . . Robots Corrupted . | . . . Combat Hostiles . | . . . Parts Fried . | . . . Impact Corruptions . | . . . Robots Melted . | . . . Combat Hostiles . | . . . Parts Melted 1 | . 1 . Heat Transferred 350 | 50 200 100 Parts Sabotaged . | . . . Parts Stolen . | . . . Parts Stripped . | . . . Power Chain Reactions . | . . . Alert | -11 -10 -10 ------- Run | Yrd Mat Min Maximum Alert Level . | . . . Low Security (%) 100 | 100 100 100 Level 1 . | . . . Level 2 . | . . . Level 3 . | . . . Level 4 . | . . . Level 5 . | . . . High Security . | . . . Max Security . | . . . Peak Influence 60 | 5 20 60 Initial 3 | . 3 . Average 6 | . 5 7 Influence Increases 113 | 10 33 70 Destroy 0b10 Robot/C 80 | . 20 60 Destroy 0b10 Robot/NC 10 | 10 . . Destroy Leader 10 | . . 10 Successful Hack 13 | . 13 . Influence Decreases 113 | 5 38 70 Entered New Map 2 | . 2 . Time Decay 111 | 5 36 70 Squads Dispatched 2 | . 2 . Investigation 1 | . 1 . Extermination . | . . . Reinforcement 1 | . 1 . Assault . | . . . Garrison . | . . . Intercept . | . . . Searches Triggered . | . . . Construction Impeded . | . . . Haulers Reinforced . | . . . Active Scanning Responses . | . . . Cargo Convoy Interrupts . | . . . Stealth | -11 -10 -10 --------- Run | Yrd Mat Min Distress Signals . | . . . Communications Jammed . | . . . Distress Signals . | . . . Times Spotted 34 | . 8 26 Peak Tracking Total 18 | . 5 18 Tactical Retreats 2 | . . 2 Traps | -11 -10 -10 ------- Run | Yrd Mat Min Traps Triggered . | . . . Indirectly . | . . . Trap Hack Attempts . | . . . Triggered . | . . . Disarmed . | . . . Reprogrammed . | . . . Reused 1 | . . 1 Traps Extracted . | . . . Installed 2 | . . 2 Triggered . | . . . Most Traps Carried 2 | . . 2 Machines | -11 -10 -10 ---------- Run | Yrd Mat Min Machines Disabled . | . . . Max in Single Turn . | . . . Machines Repaired . | . . . Machines Dismantled . | . . . Machines Sabotaged . | . . . Overloaded Fab Kills . | . . . Hacking | -11 -10 -10 --------- Run | Yrd Mat Min Machines Accessed 2 | . 1 1 Terminals 2 | . 1 1 Fabricators . | . . . Repair Stations . | . . . Recycling Units . | . . . Scanalyzers . | . . . Garrison Access . | . . . Total Hacks 7 | . 5 2 Successful 3 | . 2 1 Failed 4 | . 3 1 Catastrophic 1 | . . 1 Database Lockouts . | . . . Manual 4 | . 1 3 Terminals 7 | . 5 2 Fabricators . | . . . Repair Stations . | . . . Recycling Units . | . . . Scanalyzers . | . . . Garrison Access . | . . . Terminal Hacks 3 | . 2 1 Branch Access Points 1 | . . 1 Unreport Threat 1 | . 1 . Recall Investigation 1 | . 1 . Fabricator Hacks . | . . . Repair Station Hacks . | . . . Recycling Unit Hacks . | . . . Scanalyzer . | . . . Garrison Access Hacks . | . . . Unauthorized Hacks . | . . . Terminals . | . . . Fabricators . | . . . Repair Stations . | . . . Recycling Units . | . . . Scanalyzers . | . . . Garrison Access . | . . . Data Cores Recovered . | . . . Used . | . . . Hacking Detections 2 | . 1 1 Full Trace Events 1 | . 1 . Feedback Events . | . . . Feedback Blocked . | . . . Robot Schematics Acquired . | . . . Robots Built . | . . . Authchips . | . . . Time . | . . . Total Robot Build Rating . | . . . Part Schematics Acquired . | . . . Parts Built . | . . . Authchips . | . . . Time . | . . . Total Part Build Rating . | . . . Part Studies Acquired . | . . . Parts Repaired . | . . . Time . | . . . Parts Recycled . | . . . Recycled Matter . | . . . Retrieved Matter . | . . . Retrieved Components . | . . . Parts Scanalyzed . | . . . Part Schematics Acquired . | . . . Parts Damaged . | . . . Bothacking | -11 -10 -10 ------------ Run | Yrd Mat Min Used RIF Installer . | . . . Robots Hacked . | . . . Non-combat . | . . . Combat . | . . . Robot Hacks Applied . | . . . Relay Couplers Released . | . . . Fabnet Peak Effective % . | . . . Robots Rewired . | . . . Allies Hacked . | . . . Hacks Repelled . | . . . Allies | -11 -10 -10 -------- Run | Yrd Mat Min Total Allies . | . . . Largest Group . | . . . Highest-Rated Group . | . . . Highest-Rated Ally . | . . . Total Orders . | . . . Ally Attacks . | . . . Total Damage . | . . . Kills . | . . . Allies Corrupted . | . . . Allies Melted . | . . . Intel | -11 -10 -10 ------- Run | Yrd Mat Min Active Infowar (turns) . | . . . Robot Analysis Total . | . . . Derelict Logs Recovered . | . . . Drone Launches . | . . . Drone Recoveries . | . . . Exploration | -11 -10 -10 ------------- Run | Yrd Mat Min Turns Passed 804 | 118 143 543 Spaces Moved 578 | 80 100 398 Core 16 | 8 . 8 Treads 4 | 4 . . Legs 558 | 68 100 390 Wheels . | . . . Hover . | . . . Flight . | . . . Fastest Speed 50 | 50 120 120 Average Speed 123 | 118 122 124 Slowest Speed 400 | 160 260 400 Overloaded Moves . | . . . Propulsion Burnouts . | . . . Robots Hopped . | . . . Potential Cave-ins . | . . . Cave-ins Triggered . | . . . Exploration Rate (%) 30 | 4 22 64 Regions Visited 2 Branch Regions 1 Pre-discovered Areas . | . . . Known Exits Taken . | . . . Unknown Exits Taken 2 | 1 1 . Scrap Searched 1 | . . 1 Spaces Dug . | . . . Terrain Destroyed . | . . . Melee . | . . . Projectile . | . . . AOE . | . . . Terrain Rammed . | . . . Walls Destroyed . | . . . Machines Disabled . | . . . Actions | -11 -10 -10 --------- Run | Yrd Mat Min Total 637 | 96 109 432 Wait 13 | . . 13 Move 576 | 79 99 398 Hop . | . . . Pick Up 8 | 4 . 4 Fast Attach 9 | 8 1 . Attach 3 | . . 3 Detach . | . . . Swap 2 | . 2 . Drop 6 | 2 1 3 Fire 16 | 2 5 9 Melee . | . . . Ram . | . . . Kick 2 | 1 1 . Crush . | . . . Escape Stasis . | . . . Rewire . | . . . Trap 2 | . . 2 Miscellaneous . | . . . Route ------- -11/Scrapyard -10/Materials -10/Mines (discovered 1 exit: [*Mat]) History --------- Turn | Location | Event 19 | -11/Scrapyard | Discovered new exit (range 16) 119 | -11/Scrapyard | Entered Materials 245 | -10/Materials | Discovered new exit (range 10) 262 | -10/Materials | Entered Mines 310 | -10/Mines | Build established: Mutant 412 | -10/Mines | Discovered new exit (range 3) 658 | -10/Mines | Found a hidden stash of uninstalled traps 692 | -10/Mines | Assembled infested the area 763 | -10/Mines | Core integrity fell below 50% 779 | -10/Mines | Core integrity fell below 20% 801 | -10/Mines | Lost 5 parts (1p2n2w) 805 | -10/Mines | Destroyed by as-54335 with Assembled Heavy Rifle Last Messages --------------- 00716_ The unstable cave ceiling collapses. 00716_ as-00827 destroyed. 00716_ as-99069 destroyed. 00716_ Dropped EMP Trap. 00716_ D-53 Grenadier suffers critical hit (Destroy). 00716_ D-53 Grenadier destroyed. 00716_ Installed EMP Trap. 00720_ Dropped EMP Trap. 00720_ Installed EMP Trap. 00722_ as-95278 destroyed. 00730_ U-05 Engineer lays Concrete. 00738_ Aluminum Leg destroyed. 00740_ as-95209 triggered EMP Trap. 00740_ A bubble of electromagnetic force engulfs the area. 00760_ Aluminum Leg destroyed. 00763_ Sml. Laser destroyed. 00770_ Ion Engine destroyed. 00777_ as-91204 destroyed. 00780_ as-63128 destroyed. Map ----- +----------------------------------------------------+ | | | | | | | | | | | | | | | | | | | | | | | | | | | | | | | | | | | ?????????????????????????????????????????????????? | | ##?########????????????????##????????????????????? | | ### #??#######??????## ##?????????????###### | | #?# ##?????# ############### | | ##% ## ##????# | | ## # #????## | | ### ## ##????### ###### ##### | | ####### ##?# #####??## #????# #???# | | ??????# ##????# @##?## #????# #???## | | ??????# #?????# ### #????# #????? | | ??????# ##???## a% ###### #????? | | ?????## ##?## % ### #????? % | | ????## ### ######?# #####?????# % | | ????# ##??????# #?????????# % | | ????# & #???????# ##????????? | | ????## t & ##?????## ##???????? # | | ?????## ##????# #???????? # | | ??????## ## ###### #???????? | | ??###### r #### ##???????? | | ?## ## ##??## #????????? | | ?# ##????### #### #???????? | | ?# ## ####???????#####??## #?????????? | | ?# #### #??????????????????# #????????? | | ## ##??# ##?????????????????# ##????????? | | # ##??## ##???????????????? ###?????????? | | ##??## #???????????????? ##???????????? | | ###???# #???????????????? ##????????????? | | ##?????# ##??????????????? ##?????????????? | | ##?????# #???????????????? ???????????????? | | #?????# #???????????????? ???????????????? | | #???## ##???????????????? ???????????????? | | #???# ##??????????????? ???????????????? | | ##???# ##?????????????? ???????????????? | +----------------------------------------------------+ Best States ------------- Heat Dissipation 25 Energy Generation 10 Energy Capacity 250 Matter Stores 300 Matter Capacity 300 Sight Range 16 Terrain Scan Density 10 Evasion (%) 55 Recoil Reduction 1 Item Schematics ----------------- None Robot Schematics ------------------ None Fabricated ------------ Nothing Repaired ---------- Nothing Studied --------- None Alien Tech Used ----------------- None Achievements -------------- For Emergencies Only Challenges ------------ None Game ------ Seed SuperquantumHeartRouter Manual? 0 Play Time 00:10:38 Cumulative 26.2 hours Start 2026.01.26 @ 13:21:40 End 2026.01.26 @ 13:33:18 Sessions 1 Manual Loads 0 Difficulty Rogue Special Mode None Game No. 53 Rogue 53 Adventurer 0 Explorer 0 Win Type - Total 0 Types 0/0/0/0/0/0/0/0/0/0 Lore% 13 Gallery% 23 Achievement% 15 Wizard Run 0 Options --------- Layout 1 ASCII 0 Keyboard 0 Movement Arrows Keybinds 0 Fullscreen 1 Font 16/SmallcapsGlow Map View 55x38 Zoom Use 0% Tactical HUD 1 Map Filters NONE Filters NONE Steam 1 RUN: 9d613fc7-372a-45aa-8385-81de7849445b